{"text_format":"3","workbook":"xlsx","n_sheets":3,"sheets":["MASTER","Bid Table","Sheet1"],"not_rendered":{"images":1,"defined_names":3},"read":"whole","date_system":"1900"}

{"sheet":"MASTER","index":0,"n_rows":34,"n_cols":6,"rows_kept":34,"merged":[[5,1,5,4],[6,1,6,4],[7,1,7,4],[8,1,8,4],[9,1,10,5],[28,1,28,4],[31,0,31,5],[32,0,32,4],[33,0,33,4]]}
["Department of Environmental Services"]
["Engineering Bureau "]
[]
["2100 Clarendon Boulevard   Suite 813   Arlington, VA 22201"]
["TEL 703.228.3721   FAX 703.228.3606  ",{"$nulls":4},"Version:09/2017"]
[null,"PROJECT:",{"$nulls":3},"P14D (ITB 19-176)"]
[null,"DATE:",{"$nulls":3},{"$f":"TODAY()","v":"2022-04-22"}]
[null,"PREPARED BY:",{"$nulls":3},"K. PATEL"]
[null,"REVIEWED BY:",{"$nulls":3},"PETE RIGBY"]
[]
[]
["Site ID#","LOCATION","ESTIMATED CONSTRUCTION COST1","CONSTRUCTION ADMINISTRATION COST2","ENGINEEERING SERVICES COST3","TOTAL ESTIMATED CONSTRUCTION COST"]
["SITE D-1","WILSON BLVD. & N. BARTON ST.",{"$f":"#REF!","v":{"$error":"#REF!"}},{"$f":"SUM(#REF!)","v":{"$error":"#REF!"}},{"$f":"#REF!","v":{"$error":"#REF!"}},{"$f":"'Bid Table'!F109","v":0}]
["SITE D-2","CLARENDON BLVD. & N. BARTON ST.",{"$f":"#REF!","v":{"$error":"#REF!"}},{"$f":"SUM(#REF!)","v":{"$error":"#REF!"}},{"$f":"#REF!","v":{"$error":"#REF!"}},{"$f":"#REF!","v":{"$error":"#REF!"}}]
["SITE A-3","WASHINGTON BLVD. & N. KIRKWOOD ST.",{"$f":"#REF!","v":{"$error":"#REF!"}},{"$f":"SUM(#REF!)","v":{"$error":"#REF!"}},{"$f":"#REF!","v":{"$error":"#REF!"}},{"$f":"#REF!","v":{"$error":"#REF!"}}]
["SITE A-4","14TH ST. & N. TROY ST.",{"$f":"#REF!","v":{"$error":"#REF!"}},{"$f":"SUM(#REF!)","v":{"$error":"#REF!"}},{"$f":"#REF!","v":{"$error":"#REF!"}},{"$f":"#REF!","v":{"$error":"#REF!"}}]
["SITE A-5","N. NELSON ST. & 9TH ST.",{"$f":"#REF!","v":{"$error":"#REF!"}},{"$f":"SUM(#REF!)","v":{"$error":"#REF!"}},{"$f":"SUM(#REF!)","v":{"$error":"#REF!"}},{"$f":"#REF!","v":{"$error":"#REF!"}}]
["SITE B-3","WASHINGTON BLVD.& N. EDGEWOOD ST.",{"$f":"#REF!","v":{"$error":"#REF!"}},{"$f":"SUM(#REF!)","v":{"$error":"#REF!"}},{"$f":"#REF!","v":{"$error":"#REF!"}},{"$f":"#REF!","v":{"$error":"#REF!"}}]
["SITE C-4","WASHINGTON BLVD & N. NELSON ST.",{"$nulls":3},{"$f":"#REF!","v":{"$error":"#REF!"}}]
["SITE AP06","36TH STREET N. AND N. KENSIGNTON STREET.",{"$f":"#REF!","v":{"$error":"#REF!"}},{"$f":"SUM(#REF!)","v":{"$error":"#REF!"}},{"$f":"#REF!","v":{"$error":"#REF!"}},{"$f":"#REF!","v":{"$error":"#REF!"}}]
{"$rows_empty":8}
[null,"LUMP SUM TOTAL ESTIMATED COST",{"$nulls":3},{"$f":"SUM(F13:F20)","v":{"$error":"#REF!"}}]
["NOTES:"]
["1-Estimated Construction Cost includes Contingency. Also includes Survey Stakeout if bid project"]
["2-Construction Administation Cost includes Construction Management, Engineering Support during construction; and Survey Stakeout if on-call contractor is used"]
["3-Engineering Services Cost includes Survey, Design, and Real Estate services"]
["4-\"EXPENDITURE TO DATE\" is not provided on this form due to the way the program is funded and charged"]

{"sheet":"Bid Table","index":1,"n_rows":109,"n_cols":6,"rows_kept":109,"merged":[[0,0,0,5],[1,0,1,5],[3,0,3,5],[4,0,4,5],[6,0,6,5],[7,0,7,5],[49,0,50,0],[49,1,50,1],[49,2,50,2],[49,3,50,3],[49,4,50,4],[49,5,50,5],[57,0,58,0],[57,1,58,1],[57,2,58,2],[57,3,58,3],[57,4,58,4],[57,5,58,5],[108,1,108,4]]}
["ARLINGTON COUNTY, VIRGINIA\nOFFICE OF THE PURCHASING AGENT\nINVITATION TO BID NO. \n"]
["SUBMIT AN ORIGINAL SIGNED BID FORM AND ONE COPY"]
[]
["THE UNDERSIGNED CERTIFIES THAT (CONTRACTOR NAME)___________________________\nIS CURRENTLY REGISTERED WITH THE VIRGINIA STATE BOARD OF CONTRACTORS AS REQUIRED BY THE CODE OF VIRGINIA.  CERTIFICATE NUMBER _________________ WAS ISSUED ON THE ________DAY OF _____________, 20XX.  THE UNDERSIGNED FURTHER CERTIFIES THAT THE REGISTRATION FEE AND ALL RENEWAL FEES REQUIRED UNDER LAW HAVE BEEN PAID.  THE CONTRACTOR AGREES TO FURNISH ALL NECESSARY LABOR, EQUIPMENT, MATERIALS, AND ALL THINGS NECESSARY TO PERFORM THE WORK AS SET FORTH IN ACCORDANCE WITH THE PLANS AND SPECIFICATIONS. THE CONTRACTOR AGREES TO PERFORM RELATED WORK FOR THE FOLLOWING ITEMS AT THE FOLLOWING STIPULATED PRICES: (ALL PRICES INCLUDE PROVISION AND INSTALLATION).\n"]
["BIDDERS SHALL PROVIDE THEIR BID PRICES IN THE CELLS HIGHLIGHTED IN BLUE BELOW.  BIDDERS SHALL INCLUDE A BID PRICE FOR ALL ITEMS. FAILURE TO PROVIDE A PRICE FOR ALL ITEMS, OR ANY MODIFICATIONS OR ADDITIONS TO THE BID FORM MAY RESULT IN BID REJECTION.  LOW BID DETERMINATION WILL BE MADE BASED ON THE SUM OF THE \"BASE CONTRACT WORK\""]
[]
["CONSTRUCTION COST ESTIMATE"]
["Water Main Cleaning & Cement-Mortar Lining"]
[]
["MASTER ID#","   DESCRIPTION","QTY","UNIT","UNIT\nPRICE","TOTAL"]
[null,"I.    CLEANING AND LINING WORK (INCLUDING ALL MATERIALS)"]
[1,"CLEAN AND LINE 6” WATER MAIN","LF",{"v":26500,"d":"26,500"},"$","$"]
[2,"CLEAN AND LINE 8” WATER MAIN","LF",{"v":10000,"d":"10,000"},"$","$"]
[3,"CLEAN AND LINE 12” WATER MAIN","LF",{"v":5000,"d":"5,000"}]
[4,"REMOVE AND REPLACE OBSTRUCTION IN WATER MAIN","EA",15,"$","$"]
[5,"PROVISION OF PIPE SECTION FOR LINING THICKNESS TEST, AS DIRECTED BY PROJECT OFFICER","EA",5,"$","$"]
[6,"TELEVISION INSPECTION OF PIPELINE, UP TO 300 LF, AS DIRECTED BY PROJECT OFFICER","EA",1,"$","$"]
[{"$nulls":4},"SUBTOTAL",{"$f":"SUM(F14:F17)","v":0}]
[null,"II.    WATER MAIN WORK (INCLUDING ALL MATERIALS)"]
[1,"8-INCH WATER MAIN, DIP CL-52","LF",250,"$","$"]
[2,"6-INCH WATER MAIN, DIP CL-53 ","LF",440,"$","$"]
[3,"REMOVE & REPLACE 8-INCH WATER MAIN","LF",{"v":1300,"d":"1,300"},"$","$"]
[4,"REMOVE & REPLACE 6-INCH WATER MAIN","LF",100,"$","$"]
[5,"12-INCH GATE VALVE & VALVE BOX","EA",1,"$","$"]
[6,"8-INCH GATE VALVE & VALVE BOX","EA",10,"$","$"]
[7,"6-INCH GATE VALVE & VALVE BOX","EA",50,"$","$"]
[8,"CONNECT TO EXISTING 10-INCH to 16-INCH WATER MAIN","EA",1,"$","$"]
[9,"CONNECT TO EXISTING 4-INCH to 8-INCH WATER MAIN","EA",20,"$","$"]
[10,"2-INCH BLOWOFF VALVE ASSEMBLY & BOX","EA",6,"$","$"]
[11,"ABANDON/REMOVE EXISTING FIRE HYDRANT","EA",5,"$","$"]
[12,"REMOVE AND REPLACE EXISTING FIRE HYDRANT","EA",15,"$","$"]
[13,"INSTALL NEW FIRE HYDRANT","EA",10,"$","$"]
[14,"FIRE HYDRANT VERTICAL EXTENSION","VF",1,"$","$"]
[15,"CUT & CAP 4-INCH – 8-INCH WATER MAIN","EA",1,"$","$"]
[16,"REMOVE EXISTING VALVE BOXES","EA",3,"$","$"]
[17,"12\" x 8\" TAP/SLEEVE, VALVE & VALVE BOX","EA",1,"$","$"]
[18,"12\" x 6\" TAP/SLEEVE, VALVE & VALVE BOX","EA",1,"$","$"]
[19,"8\" x 8\" TAP/SLEEVE, VALVE & VALVE BOX","EA",1,"$","$"]
[20,"8\" x 6\" TAP/SLEEVE, VALVE & VALVE BOX","EA",1,"$","$"]
[21,"6\" x 6\" TAP/SLEEVE, VALVE & VALVE BOX","EA",1,"$","$"]
[22,"2” TEMPORARY BLOW-OFF","EA",1,"$","$"]
[23,"4-INCH TEAM INSERTION VALVE AND BOX","EA",1,"$","$"]
[24,"6-INCH TEAM INSERTION VALVE AND BOX","EA",1,"$","$"]
[25,"8-INCH TEAM INSERTION VALVE AND BOX","EA",1,"$","$"]
[26,"12-INCH TEAM INSERTION VALVE AND BOX","EA",1,"$","$"]
[{"$nulls":4},"SUBTOTAL",{"$f":"SUM(F20:F45)","v":0}]
[null,"III. WATER SERVICES \nDIRECT LABOR RATES ONLY (PRICES FOR ¾ INCH AND 1 INCH WATER SERVICES, METERS ARE SUPPLIED BY THE COUNTY)"]
[1,"SERVICE TAPS (TAP MAIN, INSTALL COPPER TUBING, INSTALL ANGLE VALVES, CORPORATION COCK, METER BOX AND METER YOKE/METER, CONNECT TO EXISTING PRIVATE SERVICE LINE, BACKFILL AND EXCAVATION)--UP TO 1O FT.","EA",5,"$","$"]
[2,"SERVICE TAPS PER ADDITIONAL LINEAR FOOT OVER 10 FT.","LF",20,"$","$"]
[3,"SERVICE RE-TAPS (TAP MAIN, INSTALL COPPER TUBING, CONNECT TO EXISTING SERVICE LINE, ABANDON CORPORATION COCK FROM EXISTING SERVICE LINE, BACKFILL AND EXCAVATION)-UP TO 10 FT.","EA",30,"$","$"]
[]
[4,"SERVICE RE-TAPS PER ADDITIONAL LINEAR FT. OVER 10 FT.","LF",100,"$","$"]
[5,"WATER METER RELOCATIONS.(INSTALL COPPER TUBING, CONNECT TO EXISTING COUNTY AND PRIVATE SERVICE LINES, PROVIDE NEW ANGLE VALVES, RELOCATE METER HOUSING AND METER YOKE, BACKFILL AND EXCAVATION)--UP TO 10 FT.","EA",5,"$","$"]
[6,"SERVICE RELOCATIONS PER ADDITIONAL LINEAR FOOT OVER 10 FT.","LF",20,"$","$"]
[{"$nulls":4},"SUBTOTAL",{"$f":"SUM(F48:F54)","v":0}]
[null,"IV.\tRELATED WORK, INCLUDING ALL MATERIALS "]
[1,"PAVEMENT RESTORATION PER SPECS. DRAWING No. M-6.0 (PRICE INCLUDES 2-INCH SM-2A BITUMINOUS CONCRETE SURFACE, 5-INCH (MIN) BM-2 BITUMINOUS CONCRETE BASE, 6” 21-A AGGREGATE BASE AND 12” SAW CUT BENCH ON EACH SIDE OF TRENCH) ","SY",3000,"$","$"]
[2,"PAVEMENT RESTORATION, 8\" BASE ASPHALT FLUSH WITH STREET (PRICE INCLUDES 8-INCH (MIN) BM-2 BITUMINOUS CONCRETE BASE, 6” 21-A AGGREGATE BASE AND 12” SAW CUT BENCH ON EACH SIDE OF TRENCH)","SY",100,"$","$"]
[]
[3,"PAVEMENT RESTORATION, 2\" TEMPORARY HOT MIX FLUSH WITH STREET(ONLY TO BE PAID AS A SEPARATE ITEM WHEN DIRECTED BY THE PROJECT OFFICER)","SY",100,"$","$"]
[4,"REMOVE & REPLACE 4” CONCRETE SIDEWALK","SY",50,"$","$"]
[5,"REMOVE & REPLACE PAVERS SIDEWALK","SY",25,"$","$"]
[6,"REMOVE & REPLACE CONCRETE CURB & GUTTER","LF",150,"$","$"]
[7,"REMOVE & REPLACE CONCRETE HEADER CURB","LF",25,"$","$"]
[8,"ROCK EXCAVATION","CY",25,"$","$"]
[9,"CONCRETE PIER, CRADLE OR ENCASEMENT","CY",25,"$","$"]
[10,"SHEETING & BRACING WHEN LEFT IN PLACE","MFBM",1,"$","$"]
[11,"VDOT #57 STONE ","TON",100,"$","$"]
[12,"AGGREGATE, VDOT #21A FOR DRIVEWAY, SHOULDER, TRAILS AS DIRECTED BY PROJECT OFFICER","TON",100,"$","$"]
[13,"SELECT BORROW","CY",100,"$","$"]
[14,"OVER EXCAVATION","CY",100,"$","$"]
[15,"SEEDING AND SODDING","SY",50,"$","$"]
[16,"REMOVE 8\" to 10\" REINFORCED CONCRETE PAVING","SY",50,"$","$"]
[17,"REMOVE & REPLACE 8\" to 10\" REINFORCED CONCRETE PAVING","SY",50,"$","$"]
[18,"TEST PIT","EA",5,"$","$"]
[19,"REMOVE & REPLACE 6” CONCRETE DRIVEWAY ENTRANCE","SY",20,"$","$"]
[20,"REMOVE & REPLACE 9” CONCRETE DRIVEWAY ENTRANCE","SY",20,"$","$"]
[21,"2” TEMPORARY BYPASS PIPING AND CONNECTIONS","LF",500,"$","$"]
[22,"3” TEMPORARY BYPASS PIPING AND CONNECTIONS","LF",100,"$","$"]
[23,"4” TEMPORARY BYPASS PIPING AND CONNECTIONS","LF",1000,"$","$"]
[24,"6” TEMPORARY BYPASS PIPING AND CONNECTIONS","LF",100,"$","$"]
[{"$nulls":4},"SUBTOTAL",{"$f":"SUM(F57:F81)","v":0}]
[null,"V. \tUNLISTED WORK EQUIPMENT AND LABOR RATES – ALL LABOR RATES MUST BE FULLY-LOADED HOURLY RATES "]
[1,"FOREMAN W/PICKUP TRUCK","HOURLY",8,"$","$"]
[2,"BACKHOE W/OPERATOR","HOURLY",8,"$","$"]
[3,"TANDEM/TRI-AXLE DUMP TRUCK W/DRIVER","HOURLY",8,"$","$"]
[4,"SINGLE AXLE DUMP TRUCK W/DRIVER","HOURLY",8,"$","$"]
[5,"LABOR-PIPE LAYER","HOURLY",8,"$","$"]
[6,"LABOR-SKILLED","HOURLY",8,"$","$"]
[7,"LABOR-UNSKILLED","HOURLY",8,"$","$"]
[8,"FLAGMAN","HOURLY",8,"$","$"]
[9,"BOOM TRUCK WITH DRIVER/OPERATOR","HOURLY",8,"$","$"]
[10,"TRACTOR TRAILER W/DRIVER","HOURLY",8,"$","$"]
[11,"RUBBER TIRE LOADER W/OPERATOR","HOURLY",8,"$","$"]
[12,"SKID STEER LOADER W/OPERATOR","HOURLY",8,"$","$"]
[13,"TRACK EXCAVATOR W/OPERATOR (50,000 POUNDS OR LESS)(SEE BID FORM PRICING CLARIFICATIONS IN SECTION III OF THIS CONTRACT)","HOURLY",8,"$","$"]
[14,"AIR COMPRESSOR WITH TOOLS","HOURLY",8,"$","$"]
[15,"TOOL TRUCK OR TRAILER WITH TOOLS INCIDIENTAL TO WORK (SEE BID FORM PRICING CLARIFICATIONS IN SECTION III OF THIS CONTRACT)","HOURLY",8,"$","$"]
[16,"TRENCH COMPACTOR/ASPHALT ROLLER","HOURLY",8,"$","$"]
[17,"PAVEMENT BREAKER","HOURLY",8,"$","$"]
[18,"TAP MACHINE ¾-INCH – 2-INCH","DAILY",1,"$","$"]
[19,"LIGHTING WITH GENERATOR","HOURLY",8,"$","$"]
[20,"ROADWAY STEEL PLATES - EA","DAILY",1,"$","$"]
[21,"EXCAVATION TRENCH BOX – EA","DAILY",1,"$","$"]
[22,"ELECTRONIC ARROW BOARD","HOURLY",8,"$","$"]
[23,"4-INCH TO 6-INCH DEWATERING PUMP","HOURLY",8,"$","$"]
[{"$nulls":4},"SUBTOTAL",{"$f":"SUM(F91:F91)","v":0}]
[]
[null,"TOTAL BID PRICE (SUM OF TOTALS FOR SECTIONS I THROUGH V ABOVE)",{"$nulls":3},{"$f":"SUMIF(E:E,\"SUBTOTAL\",F:F)","v":0}]

{"sheet":"Sheet1","index":2,"n_rows":103,"n_cols":6,"rows_kept":103}
[null,"22-DES-ITBPW-558"]
[null,"WATER MAIN CLEANING & LINING",null,"COMPLETE THE PRICING SHEET PROVIDED WITH THE BID DOCUMENTS AS ATTACHMENT A TO ITB NO. 22-DES-ITBPW-558 AND SUBMIT IT WITH YOUR BID. "]
[null,"ATTACHMENT A - PRICING SHEET"]
[{"$nulls":3},"FAILURE TO SUBMIT THE PRICING SHEET WITH THE BID WILL DEEM THE BIDDER NONRESPONSIVE."]
[]
["MASTER ID#","   DESCRIPTION","UNIT","ESTIMATED QUANTITY","UNIT PRICE","EXTENDED PRICE"]
[null,"TABLE A. CLEANING AND LINING WORK (INCLUDING ALL MATERIALS)"]
[1,"CLEAN AND LINE 6” WATER MAIN","LF",{"v":26500,"d":"26,500"},null,{"$f":"(E8*D8)","v":{"v":0,"d":"$0.00"}}]
[2,"CLEAN AND LINE 8” WATER MAIN","LF",{"v":10000,"d":"10,000"},null,{"$f":"(E9*D9)","v":{"v":0,"d":"$0.00"}}]
[3,"CLEAN AND LINE 12” WATER MAIN","LF",{"v":5000,"d":"5,000"},null,{"$f":"(E10*D10)","v":{"v":0,"d":"$0.00"}}]
[4,"REMOVE AND REPLACE OBSTRUCTION IN WATER MAIN","EA",15,null,{"v":0,"d":"$0.00"}]
[5,"PROVISION OF PIPE SECTION FOR LINING THICKNESS TEST, AS DIRECTED BY PROJECT OFFICER","EA",5,null,{"v":0,"d":"$0.00"}]
[6,"TELEVISION INSPECTION OF PIPELINE, UP TO 300 LF, AS DIRECTED BY PROJECT OFFICER","EA",1,null,{"$f":"(E13*D13)","v":{"v":0,"d":"$0.00"}}]
[{"$nulls":4},"TOTAL TABLE A",{"$f":"SUM(F8:F13)","v":{"v":0,"d":"$0.00"}}]
[null,"TABLE B. WATER MAIN WORK (INCLUDING ALL MATERIALS)"]
[1,"8-INCH WATER MAIN, DIP CL-52","LF",250,null,{"$f":"(E16*D16)","v":{"v":0,"d":"$0.00"}}]
[2,"6-INCH WATER MAIN, DIP CL-53 ","LF",440,null,{"$f":"(E17*D17)","v":{"v":0,"d":"$0.00"}}]
[3,"REMOVE & REPLACE 8-INCH WATER MAIN","LF",{"v":1300,"d":"1,300"},null,{"$f":"(E18*D18)","v":{"v":0,"d":"$0.00"}}]
[4,"REMOVE & REPLACE 6-INCH WATER MAIN","LF",100,null,{"v":0,"d":"$0.00"}]
[5,"12-INCH GATE VALVE & VALVE BOX","EA",1,null,{"v":0,"d":"$0.00"}]
[6,"8-INCH GATE VALVE & VALVE BOX","EA",10,null,{"v":0,"d":"$0.00"}]
[7,"6-INCH GATE VALVE & VALVE BOX","EA",50,null,{"v":0,"d":"$0.00"}]
[8,"CONNECT TO EXISTING 10-INCH to 16-INCH WATER MAIN","EA",1,null,{"v":0,"d":"$0.00"}]
[9,"CONNECT TO EXISTING 4-INCH to 8-INCH WATER MAIN","EA",20,null,{"v":0,"d":"$0.00"}]
[10,"2-INCH BLOWOFF VALVE ASSEMBLY & BOX","EA",6,null,{"v":0,"d":"$0.00"}]
[11,"ABANDON/REMOVE EXISTING FIRE HYDRANT","EA",5,null,{"v":0,"d":"$0.00"}]
[12,"REMOVE AND REPLACE EXISTING FIRE HYDRANT","EA",15,null,{"v":0,"d":"$0.00"}]
[13,"INSTALL NEW FIRE HYDRANT","EA",10,null,{"v":0,"d":"$0.00"}]
[14,"FIRE HYDRANT VERTICAL EXTENSION","VF",1,null,{"v":0,"d":"$0.00"}]
[15,"CUT & CAP 4-INCH – 8-INCH WATER MAIN","EA",1,null,{"v":0,"d":"$0.00"}]
[16,"REMOVE EXISTING VALVE BOXES","EA",3,null,{"v":0,"d":"$0.00"}]
[17,"12\" x 8\" TAP/SLEEVE, VALVE & VALVE BOX","EA",1,null,{"v":0,"d":"$0.00"}]
[18,"12\" x 6\" TAP/SLEEVE, VALVE & VALVE BOX","EA",1,null,{"v":0,"d":"$0.00"}]
[19,"8\" x 8\" TAP/SLEEVE, VALVE & VALVE BOX","EA",1,null,{"v":0,"d":"$0.00"}]
[20,"8\" x 6\" TAP/SLEEVE, VALVE & VALVE BOX","EA",1,null,{"v":0,"d":"$0.00"}]
[21,"6\" x 6\" TAP/SLEEVE, VALVE & VALVE BOX","EA",1,null,{"v":0,"d":"$0.00"}]
[22,"2” TEMPORARY BLOW-OFF","EA",1,null,{"v":0,"d":"$0.00"}]
[23,"4-INCH TEAM INSERTION VALVE AND BOX","EA",1,null,{"v":0,"d":"$0.00"}]
[24,"6-INCH TEAM INSERTION VALVE AND BOX","EA",1,null,{"v":0,"d":"$0.00"}]
[25,"8-INCH TEAM INSERTION VALVE AND BOX","EA",1,null,{"v":0,"d":"$0.00"}]
[26,"12-INCH TEAM INSERTION VALVE AND BOX","EA",1,null,{"v":0,"d":"$0.00"}]
[{"$nulls":4},"TOTAL TABLE B",{"$f":"SUM(F16:F41)","v":{"v":0,"d":"$0.00"}}]
[null,"TABLE C. WATER SERVICES DIRECT LABOR RATES ONLY (PRICES FOR ¾ INCH AND 1 INCH WATER SERVICES, METERS ARE SUPPLIED BY THE COUNTY)"]
[1,"SERVICE TAPS (TAP MAIN, INSTALL COPPER TUBING, INSTALL ANGLE VALVES, CORPORATION COCK, METER BOX AND METER YOKE/METER, CONNECT TO EXISTING PRIVATE SERVICE LINE, BACKFILL AND EXCAVATION)--UP TO 1O FT.","EA",5,null,{"$f":"(E44*D44)","v":{"v":0,"d":"$0.00"}}]
[2,"SERVICE TAPS PER ADDITIONAL LINEAR FOOT OVER 10 FT.","LF",20,null,{"v":0,"d":"$0.00"}]
[3,"SERVICE RE-TAPS (TAP MAIN, INSTALL COPPER TUBING, CONNECT TO EXISTING SERVICE LINE, ABANDON CORPORATION COCK FROM EXISTING SERVICE LINE, BACKFILL AND EXCAVATION)-UP TO 10 FT.","EA",30,null,{"v":0,"d":"$0.00"}]
[4,"SERVICE RE-TAPS PER ADDITIONAL LINEAR FT. OVER 10 FT.","LF",100,null,{"v":0,"d":"$0.00"}]
[5,"WATER METER RELOCATIONS.(INSTALL COPPER TUBING, CONNECT TO EXISTING COUNTY AND PRIVATE SERVICE LINES, PROVIDE NEW ANGLE VALVES, RELOCATE METER HOUSING AND METER YOKE, BACKFILL AND EXCAVATION)--UP TO 10 FT.","EA",5,null,{"v":0,"d":"$0.00"}]
[6,"SERVICE RELOCATIONS PER ADDITIONAL LINEAR FOOT OVER 10 FT.","LF",20,null,{"v":0,"d":"$0.00"}]
[{"$nulls":4},"TOTAL TABLE C",{"$f":"SUM(F44:F49)","v":{"v":0,"d":"$0.00"}}]
[null,"IV.\tRELATED WORK, INCLUDING ALL MATERIALS "]
[1,"PAVEMENT RESTORATION PER SPECS. DRAWING No. M-6.0 (PRICE INCLUDES 2-INCH SM-2A BITUMINOUS CONCRETE SURFACE, 5-INCH (MIN) BM-2 BITUMINOUS CONCRETE BASE, 6” 21-A AGGREGATE BASE AND 12” SAW CUT BENCH ON EACH SIDE OF TRENCH) ","SY",3000,null,{"$f":"(E52*D52)","v":{"v":0,"d":"$0.00"}}]
[2,"PAVEMENT RESTORATION, 8\" BASE ASPHALT FLUSH WITH STREET (PRICE INCLUDES 8-INCH (MIN) BM-2 BITUMINOUS CONCRETE BASE, 6” 21-A AGGREGATE BASE AND 12” SAW CUT BENCH ON EACH SIDE OF TRENCH)","SY",100,null,{"$f":"(E53*D53)","v":{"v":0,"d":"$0.00"}}]
[3,"PAVEMENT RESTORATION, 2\" TEMPORARY HOT MIX FLUSH WITH STREET(ONLY TO BE PAID AS A SEPARATE ITEM WHEN DIRECTED BY THE PROJECT OFFICER)","SY",100,null,{"$f":"(E54*D54)","v":{"v":0,"d":"$0.00"}}]
[4,"REMOVE & REPLACE 4” CONCRETE SIDEWALK","SY",50,null,{"v":0,"d":"$0.00"}]
[5,"REMOVE & REPLACE PAVERS SIDEWALK","SY",25,null,{"v":0,"d":"$0.00"}]
[6,"REMOVE & REPLACE CONCRETE CURB & GUTTER","LF",150,null,{"v":0,"d":"$0.00"}]
[7,"REMOVE & REPLACE CONCRETE HEADER CURB","LF",25,null,{"v":0,"d":"$0.00"}]
[8,"ROCK EXCAVATION","CY",25,null,{"v":0,"d":"$0.00"}]
[9,"CONCRETE PIER, CRADLE OR ENCASEMENT","CY",25,null,{"v":0,"d":"$0.00"}]
[10,"SHEETING & BRACING WHEN LEFT IN PLACE","MFBM",1,null,{"v":0,"d":"$0.00"}]
[11,"VDOT #57 STONE ","TON",100,null,{"v":0,"d":"$0.00"}]
[12,"AGGREGATE, VDOT #21A FOR DRIVEWAY, SHOULDER, TRAILS AS DIRECTED BY PROJECT OFFICER","TON",100,null,{"v":0,"d":"$0.00"}]
[13,"SELECT BORROW","CY",100,null,{"v":0,"d":"$0.00"}]
[14,"OVER EXCAVATION","CY",100,null,{"v":0,"d":"$0.00"}]
[15,"SEEDING AND SODDING","SY",50,null,{"v":0,"d":"$0.00"}]
[16,"REMOVE 8\" to 10\" REINFORCED CONCRETE PAVING","SY",50,null,{"v":0,"d":"$0.00"}]
[17,"REMOVE & REPLACE 8\" to 10\" REINFORCED CONCRETE PAVING","SY",50,null,{"v":0,"d":"$0.00"}]
[18,"TEST PIT","EA",5,null,{"v":0,"d":"$0.00"}]
[19,"REMOVE & REPLACE 6” CONCRETE DRIVEWAY ENTRANCE","SY",20,null,{"v":0,"d":"$0.00"}]
[20,"REMOVE & REPLACE 9” CONCRETE DRIVEWAY ENTRANCE","SY",20,null,{"$f":"(E71*D71)","v":{"v":0,"d":"$0.00"}}]
[21,"2” TEMPORARY BYPASS PIPING AND CONNECTIONS","LF",500,null,{"v":0,"d":"$0.00"}]
[22,"3” TEMPORARY BYPASS PIPING AND CONNECTIONS","LF",100,null,{"v":0,"d":"$0.00"}]
[23,"4” TEMPORARY BYPASS PIPING AND CONNECTIONS","LF",1000,null,{"v":0,"d":"$0.00"}]
[24,"6” TEMPORARY BYPASS PIPING AND CONNECTIONS","LF",100,null,{"v":0,"d":"$0.00"}]
[{"$nulls":4},"TOTAL TABLE D",{"$f":"SUM(F52:F75)","v":{"v":0,"d":"$0.00"}}]
[null,"V. \tUNLISTED WORK EQUIPMENT AND LABOR RATES – ALL LABOR RATES MUST BE FULLY-LOADED HOURLY RATES "]
[1,"FOREMAN W/PICKUP TRUCK","HOURLY",8,null,{"$f":"(E78*D78)","v":{"v":0,"d":"$0.00"}}]
[2,"BACKHOE W/OPERATOR","HOURLY",8,null,{"$f":"(E79*D79)","v":{"v":0,"d":"$0.00"}}]
[3,"TANDEM/TRI-AXLE DUMP TRUCK W/DRIVER","HOURLY",8,null,{"$f":"(E80*D80)","v":{"v":0,"d":"$0.00"}}]
[4,"SINGLE AXLE DUMP TRUCK W/DRIVER","HOURLY",8,null,{"v":0,"d":"$0.00"}]
[5,"LABOR-PIPE LAYER","HOURLY",8,null,{"v":0,"d":"$0.00"}]
[6,"LABOR-SKILLED","HOURLY",8,null,{"v":0,"d":"$0.00"}]
[7,"LABOR-UNSKILLED","HOURLY",8,null,{"v":0,"d":"$0.00"}]
[8,"FLAGMAN","HOURLY",8,null,{"v":0,"d":"$0.00"}]
[9,"BOOM TRUCK WITH DRIVER/OPERATOR","HOURLY",8,null,{"v":0,"d":"$0.00"}]
[10,"TRACTOR TRAILER W/DRIVER","HOURLY",8,null,{"v":0,"d":"$0.00"}]
[11,"RUBBER TIRE LOADER W/OPERATOR","HOURLY",8,null,{"v":0,"d":"$0.00"}]
[12,"SKID STEER LOADER W/OPERATOR","HOURLY",8,null,{"v":0,"d":"$0.00"}]
[13,"TRACK EXCAVATOR W/OPERATOR (50,000 POUNDS OR LESS)(SEE BID FORM PRICING CLARIFICATIONS IN SECTION III OF THIS CONTRACT)","HOURLY",8,null,{"v":0,"d":"$0.00"}]
[14,"AIR COMPRESSOR WITH TOOLS","HOURLY",8,null,{"v":0,"d":"$0.00"}]
[15,"TOOL TRUCK OR TRAILER WITH TOOLS INCIDIENTAL TO WORK (SEE BID FORM PRICING CLARIFICATIONS IN SECTION III OF THIS CONTRACT)","HOURLY",8,null,{"v":0,"d":"$0.00"}]
[16,"TRENCH COMPACTOR/ASPHALT ROLLER","HOURLY",8,null,{"v":0,"d":"$0.00"}]
[17,"PAVEMENT BREAKER","HOURLY",8,null,{"v":0,"d":"$0.00"}]
[18,"TAP MACHINE ¾-INCH – 2-INCH","DAILY",1,null,{"v":0,"d":"$0.00"}]
[19,"LIGHTING WITH GENERATOR","HOURLY",8,null,{"v":0,"d":"$0.00"}]
[20,"ROADWAY STEEL PLATES - EA","DAILY",1,null,{"v":0,"d":"$0.00"}]
[21,"EXCAVATION TRENCH BOX – EA","DAILY",1,null,{"v":0,"d":"$0.00"}]
[22,"ELECTRONIC ARROW BOARD","HOURLY",8,null,{"v":0,"d":"$0.00"}]
[23,"4-INCH TO 6-INCH DEWATERING PUMP","HOURLY",8,null,{"v":0,"d":"$0.00"}]
[{"$nulls":4},"TOTAL TABLE E",{"$f":"SUM(F78:F100)","v":{"v":0,"d":"$0.00"}}]
[]
[{"$nulls":4},"GRAND TOTAL TABLES A-E",{"$f":"SUM(F14,F42,F50,F76,F101)","v":{"v":0,"d":"$0.00"}}]